fUST/lending_fUST_20250221
["ID","MTS","AMOUNT","RATE_DAILY","PERIOD"]
[353894381,1740117038734,-500.0,0.00013698,2]
[353894382,1740117038744,-500.0,0.00013698,2]
[353894383,1740117038753,-500.0,0.00013698,2]
[353894384,1740117038762,-500.0,0.00013698,2]
[353894385,1740117038772,-564.43,0.00013698,2]
[353894386,1740117038781,-500.0,0.00013698,2]
[353894387,1740117038790,-500.0,0.00013698,2]
[353894388,1740117038800,-500.0,0.00013698,2]
[353894389,1740117038809,-646.88448559,0.00013698,2]
[353894390,1740117038819,-500.0,0.00013698,2]
[353894391,1740117038828,-500.0,0.00013698,2]
[353894392,1740117038838,-533.17,0.00013698,2]
[353894393,1740117038848,-505.49796428,0.00013698,2]
[353894394,1740117038858,-500.0,0.00013698,2]
[353894395,1740117038867,-500.0,0.00013698,2]
[353894396,1740117038878,-500.0,0.00013698,2]
[353894397,1740117038887,-500.0,0.00013698,2]
[353894398,1740117038897,-500.0,0.00013698,2]
[353894399,1740117038906,-500.0,0.00013698,2]
[353894400,1740117038916,-501.17249632,0.00013698,2]
[353894401,1740117038926,-500.0,0.00013698,2]
[353894402,1740117039033,-500.0,0.00013698,2]
[353894403,1740117039077,-500.0,0.00013698,2]
[353894404,1740117039087,-500.0,0.00013698,2]
[353894405,1740117039096,-500.0,0.00013698,2]
[353894406,1740117039107,-503.49220654,0.00013698,2]
[353894407,1740117039117,-503.07262507,0.00013698,2]
[353894408,1740117039127,-450.27587997,0.00013698,2]
[353894409,1740117039136,-200.0,0.00013698,2]
[353894410,1740117039145,-500.0,0.00013698,2]
[353894411,1740117039155,-398.31094337,0.00013698,2]
[353894412,1740117039167,-38.18755941,0.00013698,2]
[353894413,1740117039176,-500.0,0.00013698,2]
[353894414,1740117039186,-500.0,0.00013698,2]
[353894415,1740117039196,-500.0,0.00013698,2]
[353894416,1740117039205,-500.0097318,0.00013698,2]
[353894417,1740117039214,-500.0,0.00013698,2]
[353894418,1740117039223,-500.0,0.00013698,2]
[353894419,1740117039233,-1090.82,0.00013698,2]
[353894420,1740117039242,-503.36694849,0.00013698,2]
[353894421,1740117039251,-500.0,0.00013698,2]
[353894422,1740117039260,-7612.34,0.00013698,2]
[353894423,1740117039269,-3679.13,0.00013698,2]
[353894424,1740117039279,-500.0,0.00013698,2]
[353894425,1740117039288,-1146.8,0.00013698,2]
[353894426,1740117039297,-647.37,0.00013698,2]
[353894427,1740117039307,-500.0,0.00013698,2]
[353894428,1740117039316,-500.0,0.00013698,2]
[353894429,1740117039325,-1094.39,0.00013698,2]
[353894430,1740117039334,-1858.53,0.00013698,2]
[353894431,1740117039343,-500.7774841,0.00013698,2]
[353894432,1740117039352,-610.42,0.00013698,2]
[353894433,1740117039362,-502.5719089,0.00013698,2]
[353894434,1740117039371,-500.0,0.00013698,2]
[353894435,1740117039380,-15893.71,0.00013698,2]
[353894436,1740117039389,-501.39903388,0.00013698,2]
[353894437,1740117039398,-500.0,0.00013698,2]
[353894438,1740117039407,-500.0,0.00013698,2]
[353894439,1740117039416,-500.0,0.00013698,2]
[353894440,1740117039425,-500.0,0.00013698,2]
[353894441,1740117039434,-828.8,0.00013698,2]
[353894442,1740117039443,-1087.4,0.00013698,2]
[353894443,1740117039452,-500.0,0.00013698,2]
[353894444,1740117039461,-504.64122037,0.00013698,2]
[353894445,1740117039470,-559.84,0.00013698,2]
[353894446,1740117039479,-500.0,0.00013698,2]
[353894447,1740117039489,-679.04,0.00013698,2]
[353894448,1740117039498,-500.0,0.00013698,2]
[353894449,1740117039507,-502.07321453,0.00013698,2]
[353894450,1740117039516,-500.0,0.00013698,2]
[353894451,1740117039525,-1681.39,0.00013698,2]
[353894452,1740117039537,-568.78,0.00013698,2]
[353894453,1740117039546,-500.0,0.00013698,2]
[353894454,1740117039555,-3245.48,0.00013698,2]
[353894455,1740117039564,-500.0,0.00013698,2]
[353894456,1740117039573,-7414.0,0.00013698,2]
[353894457,1740117039582,-881.69,0.00013698,2]
[353894458,1740117039591,-500.0,0.00013698,2]
[353894459,1740117039600,-1674.8,0.00013698,2]
[353894460,1740117039610,-1125.57,0.00013698,2]
[353894461,1740117039619,-500.0,0.00013698,2]
[353894462,1740117039628,-1539.85339077,0.00013698,2]
[353894463,1740117039640,-297.63660923,0.00013698,2]
[353894464,1740117039649,-500.0,0.00013698,2]
[353894465,1740117039658,-529.29,0.00013698,2]
[353894466,1740117039667,-907.48,0.00013698,2]
[353894467,1740117039676,-604.66,0.00013698,2]
[353894468,1740117039685,-500.0,0.00013698,2]
[353894469,1740117039694,-500.0,0.00013698,2]
[353894470,1740117039703,-500.0,0.00013698,2]
[353894471,1740117039712,-1373.67,0.00013698,2]
[353894472,1740117039722,-500.0,0.00013698,2]
[353894473,1740117039731,-500.0,0.00013698,2]
[353894474,1740117039740,-962.46,0.00013698,2]
[353894475,1740117039749,-500.0,0.00013698,2]
[353894476,1740117039758,-500.0,0.00013698,2]
[353894477,1740117039767,-500.0,0.00013698,2]
[353894478,1740117039776,-500.0,0.00013698,2]
[353894479,1740117039785,-500.0,0.00013698,2]
[353894480,1740117039795,-822.03,0.00013698,2]
[353894481,1740117039803,-500.0,0.00013698,2]
[353894482,1740117039813,-2871.79,0.00013698,2]
[353894483,1740117039822,-500.0,0.00013698,2]
[353894484,1740117039831,-915.56,0.00013698,2]
[353894485,1740117039840,-500.0,0.00013698,2]
[353894486,1740117039849,-500.0,0.00013698,2]
[353894487,1740117039858,-500.0,0.00013698,2]
[353894488,1740117039866,-586.485687,0.00013699,2]
[353894489,1740117039876,-163.355146,0.00013699,2]
[353894490,1740117039885,-500.0,0.0001378,2]
[353894491,1740117039894,-500.0,0.0001378,2]
[353894492,1740117039903,-500.0,0.0001378,2]
[353894493,1740117039912,-500.0,0.0001378,2]
[353894494,1740117039921,-500.0,0.0001378,2]
[353894495,1740117039930,-500.0,0.0001378,2]
[353894496,1740117039940,-500.0,0.0001378,2]
[353894497,1740117039949,-500.0,0.0001378,2]
[353894498,1740117039958,-500.0,0.0001378,2]
[353894499,1740117039968,-500.0,0.0001378,2]
[353894500,1740117039977,-500.0,0.0001378,2]
[353894501,1740117039986,-500.0,0.0001378,2]
[353894502,1740117039995,-500.0,0.0001378,2]
[353894503,1740117040005,-500.0,0.0001378,2]
[353894504,1740117040014,-500.0,0.0001378,2]
[353894505,1740117040023,-500.0,0.0001378,2]
[353894506,1740117040033,-500.0,0.0001378,2]
[353894507,1740117040042,-500.0,0.0001378,2]
[353894508,1740117040052,-500.0,0.0001378,2]
[353894509,1740117040061,-500.0,0.0001378,2]
[353894510,1740117040070,-500.0,0.0001378,2]
[353894511,1740117040079,-564.43,0.0001378,2]
[353894512,1740117040088,-500.0,0.0001378,2]
[353894513,1740117040097,-500.0,0.0001378,2]
[353894514,1740117040108,-500.0,0.0001378,2]
[353894515,1740117040117,-500.0,0.0001378,2]
[353894516,1740117040126,-500.0,0.0001378,2]
[353894517,1740117040135,-533.17,0.0001378,2]
[353894518,1740117040144,-500.0,0.0001378,2]
[353894519,1740117040153,-500.0,0.0001378,2]
[353894521,1740117040162,-500.0,0.0001378,2]
[353894522,1740117040171,-500.0,0.0001378,2]
[353894523,1740117040180,-500.0,0.0001378,2]
[353894524,1740117040189,-500.0,0.0001378,2]
[353894525,1740117040198,-402.1478177,0.0001378,2]
[353894526,1740117040207,-500.0,0.0001378,2]
[353894527,1740117040216,-500.0,0.0001378,2]
[353894528,1740117040226,-500.0,0.0001378,2]
[353894530,1740117040235,-500.0,0.0001378,2]
[353894531,1740117040244,-500.0,0.0001378,2]
[353894532,1740117040253,-500.0,0.0001378,2]
[353894533,1740117040262,-500.0,0.0001378,2]
[353894534,1740117040271,-500.0,0.0001378,2]
[353894535,1740117040280,-1090.82,0.0001378,2]
[353894536,1740117040289,-500.0,0.0001378,2]
[353894537,1740117040298,-7612.34,0.0001378,2]
[353894538,1740117040308,-3679.13,0.0001378,2]
[353894539,1740117040317,-1146.8,0.0001378,2]
[353894540,1740117040326,-647.37,0.0001378,2]
[353894541,1740117040335,-500.0,0.0001378,2]
[353894542,1740117040344,-500.0,0.0001378,2]
[353894543,1740117040354,-1094.39,0.0001378,2]
[353894544,1740117040363,-1858.53,0.0001378,2]
[353894545,1740117040371,-610.42,0.0001378,2]
[353894546,1740117040380,-500.0,0.0001378,2]
[353894547,1740117040390,-15893.71,0.0001378,2]
[353894548,1740117040399,-500.0,0.0001378,2]
[353894549,1740117040408,-500.0,0.0001378,2]
[353894550,1740117040417,-500.0,0.0001378,2]
[353894551,1740117040426,-828.8,0.0001378,2]
[353894552,1740117040436,-1087.4,0.0001378,2]
[353894553,1740117040445,-559.84,0.0001378,2]
[353894554,1740117040454,-500.0,0.0001378,2]
[353894555,1740117040463,-679.04,0.0001378,2]
[353894556,1740117040473,-500.0,0.0001378,2]
[353894557,1740117040482,-507.02082103,0.0001378,2]
[353894558,1740117040492,-1681.39,0.0001378,2]
[353894559,1740117040501,-568.78,0.0001378,2]
[353894560,1740117040510,-504.13573299,0.0001378,2]
[353894561,1740117040520,-3245.48,0.0001378,2]
[353894563,1740117040534,-500.0,0.0001378,2]
[353894564,1740117040543,-7414.0,0.0001378,2]
[353894565,1740117040552,-881.69,0.0001378,2]
[353894566,1740117040561,-500.0,0.0001378,2]
[353894567,1740117040571,-1674.8,0.0001378,2]
[353894568,1740117040580,-1125.57,0.0001378,2]
[353894569,1740117040590,-500.0,0.0001378,2]
[353894571,1740117040599,-1837.49,0.0001378,2]
[353894573,1740117040610,-500.0,0.0001378,2]
[353894575,1740117040619,-529.29,0.0001378,2]
[353894577,1740117040630,-907.48,0.0001378,2]
[353894579,1740117040639,-604.66,0.0001378,2]
[353894581,1740117040649,-500.0,0.0001378,2]
[353894583,1740117040658,-500.0,0.0001378,2]
[353894584,1740117040667,-500.0,0.0001378,2]
[353894585,1740117040676,-1373.67,0.0001378,2]
[353894587,1740117040685,-500.0,0.0001378,2]
[353894588,1740117040694,-500.0,0.0001378,2]
[353894590,1740117040704,-962.46,0.0001378,2]
[353894591,1740117040713,-500.0,0.0001378,2]
[353894592,1740117040722,-500.0,0.0001378,2]
[353894593,1740117040731,-500.0,0.0001378,2]
[353894594,1740117040741,-500.0,0.0001378,2]
[353894595,1740117040750,-500.0,0.0001378,2]
[353894596,1740117040761,-822.03,0.0001378,2]
[353894597,1740117040770,-500.0,0.0001378,2]
[353894598,1740117040780,-2871.79,0.0001378,2]
[353894599,1740117040789,-500.0,0.0001378,2]
[353894600,1740117040798,-915.56,0.0001378,2]
[353894601,1740117040808,-500.0,0.0001378,2]
[353894602,1740117040817,-500.0,0.0001378,2]
[353894603,1740117040827,-500.0,0.00013863,2]
[353894604,1740117040837,-500.0,0.00013863,2]
[353894605,1740117040846,-500.0,0.00013863,2]
[353894606,1740117040855,-500.0,0.00013863,2]
[353894607,1740117040865,-500.0,0.00013863,2]
[353894608,1740117040875,-500.24904968,0.00013863,2]
[353894609,1740117040884,-500.0,0.00013863,2]
[353894610,1740117040893,-500.0,0.00013863,2]
[353894611,1740117040903,-500.0,0.00013863,2]
[353894612,1740117040912,-500.0,0.00013863,2]
[353894613,1740117040921,-500.0,0.00013863,2]
[353894614,1740117040931,-500.0,0.00013863,2]
[353894615,1740117040940,-500.0,0.00013863,2]
[353894616,1740117040950,-500.0,0.00013863,2]
[353894617,1740117040960,-500.0,0.00013863,2]
[353894618,1740117040969,-500.0,0.00013863,2]
[353894619,1740117040979,-500.0,0.00013863,2]
[353894620,1740117040988,-500.0,0.00013863,2]
[353894621,1740117040997,-564.43,0.00013863,2]
[353894622,1740117041007,-500.0,0.00013863,2]
[353894623,1740117041016,-500.0,0.00013863,2]
[353894624,1740117041027,-500.0,0.00013863,2]
[353894625,1740117041036,-500.0,0.00013863,2]
[353894626,1740117041045,-500.0,0.00013863,2]
[353894627,1740117041055,-533.17,0.00013863,2]
[353894628,1740117041064,-500.0,0.00013863,2]
[353894629,1740117041074,-500.0,0.00013863,2]
[353894630,1740117041083,-500.0,0.00013863,2]
[353894631,1740117041092,-500.0,0.00013863,2]
[353894632,1740117041102,-500.0,0.00013863,2]
[353894633,1740117041111,-500.0,0.00013863,2]
[353894634,1740117041121,-500.0,0.00013863,2]
[353894635,1740117041130,-500.0,0.00013863,2]
[353894636,1740117041140,-500.0,0.00013863,2]
[353894637,1740117041149,-500.0,0.00013863,2]
[353894638,1740117041159,-500.0,0.00013863,2]
[353894639,1740117041168,-500.0,0.00013863,2]
[353894640,1740117041178,-1090.82,0.00013863,2]
[353894641,1740117041187,-7612.34,0.00013863,2]
[353894642,1740117041197,-3679.13,0.00013863,2]
[353894643,1740117041206,-1146.8,0.00013863,2]
[353894644,1740117041217,-647.37,0.00013863,2]
[353894645,1740117041227,-500.0,0.00013863,2]
[353894646,1740117041236,-500.0,0.00013863,2]
[353894647,1740117041245,-1094.39,0.00013863,2]
[353894648,1740117041256,-1858.53,0.00013863,2]
[353894649,1740117041266,-610.42,0.00013863,2]
[353894650,1740117041276,-500.0,0.00013863,2]
[353894651,1740117041286,-15893.71,0.00013863,2]
[353894652,1740117041295,-500.0,0.00013863,2]
[353894653,1740117041305,-500.0,0.00013863,2]
[353894654,1740117041316,-500.0,0.00013863,2]
[353894655,1740117041326,-828.8,0.00013863,2]
[353894656,1740117041336,-1087.4,0.00013863,2]
[353894657,1740117041346,-559.84,0.00013863,2]
[353894658,1740117041355,-500.0,0.00013863,2]
[353894659,1740117041364,-679.04,0.00013863,2]
[353894660,1740117041373,-608.411473,0.00013863,2]
[353894661,1740117041383,-1681.39,0.00013863,2]
[353894662,1740117041392,-568.78,0.00013863,2]
[353894663,1740117041402,-3245.48,0.00013863,2]
[353894664,1740117041411,-500.0,0.00013863,2]
[353894665,1740117041422,-7414.0,0.00013863,2]
[353894666,1740117041431,-881.69,0.00013863,2]
[353894667,1740117041440,-500.0,0.00013863,2]
[353894668,1740117041450,-1674.8,0.00013863,2]
[353894669,1740117041459,-1125.57,0.00013863,2]
[353894670,1740117041469,-1837.49,0.00013863,2]
[353894671,1740117041478,-529.29,0.00013863,2]
[353894672,1740117041488,-500.0,0.00013863,2]
[353894673,1740117041496,-907.48,0.00013863,2]
[353894674,1740117041505,-604.66,0.00013863,2]
[353894675,1740117041515,-500.0,0.00013863,2]
[353894676,1740117041526,-500.0,0.00013863,2]
[353894677,1740117041538,-1373.67,0.00013863,2]
[353894678,1740117041547,-500.0,0.00013863,2]
[353894679,1740117041557,-500.0,0.00013863,2]
[353894680,1740117041566,-962.46,0.00013863,2]
[353894681,1740117041576,-616.09117246,0.00013863,2]
[353894682,1740117041585,-506.03743178,0.00013863,2]
[353894683,1740117041594,-500.0,0.00013863,2]
[353894684,1740117041604,-500.0,0.00013863,2]
[353894685,1740117041613,-500.0,0.00013863,2]
[353894686,1740117041622,-822.03,0.00013863,2]
[353894687,1740117041632,-500.0,0.00013863,2]
[353894688,1740117041641,-2871.79,0.00013863,2]
[353894689,1740117041651,-500.0,0.00013863,2]
[353894690,1740117041661,-915.56,0.00013863,2]
[353894691,1740117041670,-500.0,0.00013863,2]
[353894692,1740117041679,-500.0,0.00013863,2]
[353894693,1740117041689,-500.0,0.00013945,2]
[353894694,1740117041699,-500.0,0.00013945,2]
[353894695,1740117041708,-500.0,0.00013945,2]
[353894696,1740117041718,-500.0,0.00013945,2]
[353894697,1740117041727,-500.0,0.00013945,2]
[353894698,1740117041736,-500.0,0.00013945,2]
[353894699,1740117041745,-500.0,0.00013945,2]
[353894700,1740117041755,-500.0,0.00013945,2]
[353894701,1740117041764,-500.0,0.00013945,2]
[353894702,1740117041773,-500.0,0.00013945,2]
[353894703,1740117041782,-500.0,0.00013945,2]
[353894704,1740117041792,-500.0,0.00013945,2]
[353894705,1740117041801,-500.0,0.00013945,2]
[353894706,1740117041810,-500.0,0.00013945,2]
[353894707,1740117041820,-500.0,0.00013945,2]
[353894708,1740117041829,-500.0,0.00013945,2]
[353894709,1740117041839,-500.0,0.00013945,2]
[353894710,1740117041848,-564.43,0.00013945,2]
[353894711,1740117041857,-500.0,0.00013945,2]
[353894712,1740117041867,-500.0,0.00013945,2]
[353894713,1740117041876,-500.0,0.00013945,2]
[353894714,1740117041886,-500.0,0.00013945,2]
[353894715,1740117041895,-443.10445159,0.00013945,2]
[353894716,1740117041904,-533.17,0.00013945,2]
[353894717,1740117041914,-500.0,0.00013945,2]
[353894718,1740117042026,-500.0,0.00013945,2]
[353894719,1740117042036,-500.0,0.00013945,2]
[353894720,1740117042045,-500.0,0.00013945,2]
[353894721,1740117042054,-500.0,0.00013945,2]
[353894722,1740117042064,-500.0,0.00013945,2]
[353894723,1740117042072,-521.20982767,0.00013945,2]
[353894724,1740117042081,-500.0,0.00013945,2]
[353894725,1740117042091,-1090.82,0.00013945,2]
[353894726,1740117042100,-7612.34,0.00013945,2]
[353894727,1740117042110,-3679.13,0.00013945,2]
[353894728,1740117042119,-1146.8,0.00013945,2]
[353894729,1740117042128,-647.37,0.00013945,2]
[353894730,1740117042137,-500.0,0.00013945,2]
[353894731,1740117042146,-500.0,0.00013945,2]
[353894732,1740117042155,-1094.39,0.00013945,2]
[353894733,1740117042165,-1858.53,0.00013945,2]
[353894734,1740117042174,-610.42,0.00013945,2]
[353894735,1740117042183,-500.0,0.00013945,2]
[353894736,1740117042192,-15893.71,0.00013945,2]
[353894737,1740117042201,-500.0,0.00013945,2]
[353894738,1740117042210,-500.0,0.00013945,2]
[353894739,1740117042219,-500.0,0.00013945,2]
[353894740,1740117042228,-828.8,0.00013945,2]
[353894741,1740117042238,-1087.4,0.00013945,2]
[353894742,1740117042247,-559.84,0.00013945,2]
[353894743,1740117042256,-500.0,0.00013945,2]
[353894744,1740117042266,-679.04,0.00013945,2]
[353894745,1740117042275,-1681.39,0.00013945,2]
[353894746,1740117042286,-568.78,0.00013945,2]
[353894747,1740117042296,-3245.48,0.00013945,2]
[353894748,1740117042305,-500.0,0.00013945,2]
[353894749,1740117042315,-7414.0,0.00013945,2]
[353894750,1740117042323,-881.69,0.00013945,2]
[353894751,1740117042333,-500.0,0.00013945,2]
[353894752,1740117042342,-1674.8,0.00013945,2]
[353894753,1740117042351,-1125.57,0.00013945,2]
[353894754,1740117042361,-1837.49,0.00013945,2]
[353894755,1740117042370,-529.29,0.00013945,2]
[353894756,1740117042380,-500.0,0.00013945,2]
[353894757,1740117042389,-907.48,0.00013945,2]
[353894758,1740117042398,-604.66,0.00013945,2]
[353894759,1740117042407,-500.0,0.00013945,2]
[353894760,1740117042416,-500.0,0.00013945,2]
[353894761,1740117042425,-1373.67,0.00013945,2]
[353894762,1740117042435,-500.0,0.00013945,2]
[353894763,1740117042445,-500.0,0.00013945,2]
[353894764,1740117042455,-962.46,0.00013945,2]
[353894765,1740117042465,-500.0,0.00013945,2]
[353894766,1740117042474,-500.0,0.00013945,2]
[353894767,1740117042483,-500.0,0.00013945,2]
[353894768,1740117042492,-822.03,0.00013945,2]
[353894769,1740117042501,-500.0,0.00013945,2]
[353894770,1740117042510,-2871.79,0.00013945,2]
[353894771,1740117042519,-500.0,0.00013945,2]
[353894772,1740117042531,-915.56,0.00013945,2]
[353894773,1740117042540,-500.0,0.00013945,2]
[353894774,1740117042549,-500.0,0.00013945,2]
[353894775,1740117042558,-7010.1363024,0.00014,2]
[353894776,1740117042568,-630.03586735,0.00014005,2]
[353894777,1740117042579,-501.07938361,0.00014021,2]
[353894778,1740117042588,-500.0,0.00014021,2]
[353894779,1740117042597,-292.17846697,0.00014026,2]
[353894780,1740117042607,-259.70956521,0.00014026,2]
[353894781,1740117042617,-500.0,0.00014027,2]
[353894782,1740117042626,-337.8382426,0.00014027,2]
[353894783,1740117042635,-500.0,0.00014027,2]
[353894784,1740117042644,-500.0,0.00014027,2]
[353894785,1740117042653,-514.52457317,0.00014027,2]
[353894786,1740117042663,-500.0,0.00014027,2]
[353894787,1740117042672,-507.11130393,0.00014027,2]
[353894788,1740117042681,-500.0,0.00014027,2]
[353894789,1740117042690,-500.0,0.00014027,2]
[353894790,1740117042699,-500.0,0.00014027,2]
[353894791,1740117042708,-500.0,0.00014027,2]
[353894792,1740117042717,-500.0,0.00014027,2]
[353894793,1740117042727,-500.0,0.00014027,2]
[353894794,1740117042736,-500.0,0.00014027,2]
[353894795,1740117042746,-500.0,0.00014027,2]
[353894796,1740117042755,-500.0,0.00014027,2]
[353894797,1740117042764,-500.0,0.00014027,2]
[353894798,1740117042773,-564.43,0.00014027,2]
[353894799,1740117042782,-500.0,0.00014027,2]
[353894800,1740117042791,-500.0,0.00014027,2]
[353894801,1740117042800,-500.0,0.00014027,2]
[353894802,1740117042809,-533.17,0.00014027,2]
[353894803,1740117042818,-500.0,0.00014027,2]
[353894804,1740117042827,-500.0,0.00014027,2]
[353894805,1740117042836,-500.0,0.00014027,2]
[353894806,1740117042845,-500.0,0.00014027,2]
[353894807,1740117042854,-500.0,0.00014027,2]
[353894808,1740117042863,-500.0,0.00014027,2]
[353894809,1740117042872,-500.0,0.00014027,2]
[353894810,1740117042881,-1090.82,0.00014027,2]
[353894811,1740117042890,-7612.34,0.00014027,2]
[353894812,1740117042899,-3679.13,0.00014027,2]
[353894813,1740117042909,-1146.8,0.00014027,2]
[353894814,1740117042918,-647.37,0.00014027,2]
[353894815,1740117042927,-500.0,0.00014027,2]
[353894816,1740117042936,-500.0,0.00014027,2]
[353894817,1740117042945,-1094.39,0.00014027,2]
[353894818,1740117042955,-1858.53,0.00014027,2]
[353894819,1740117042964,-610.42,0.00014027,2]
[353894820,1740117042973,-500.0,0.00014027,2]
[353894821,1740117042983,-15893.71,0.00014027,2]
[353894822,1740117042991,-500.0,0.00014027,2]
[353894823,1740117043001,-508.37035668,0.00014027,2]
[353894824,1740117043009,-500.0,0.00014027,2]
[353894825,1740117043018,-828.8,0.00014027,2]
[353894826,1740117043028,-1087.4,0.00014027,2]
[353894827,1740117043038,-559.84,0.00014027,2]
[353894829,1740117043047,-500.0,0.00014027,2]
[353894831,1740117043056,-679.04,0.00014027,2]
[353894833,1740117043065,-1681.39,0.00014027,2]
[353894834,1740117043074,-568.78,0.00014027,2]
[353894835,1740117043083,-3245.48,0.00014027,2]
[353894836,1740117043092,-500.0,0.00014027,2]
[353894837,1740117043102,-7414.0,0.00014027,2]
[353894839,1740117043112,-881.69,0.00014027,2]
[353894841,1740117043121,-500.0,0.00014027,2]
[353894844,1740117043130,-1674.8,0.00014027,2]
[353894845,1740117043140,-1125.57,0.00014027,2]
[353894846,1740117043149,-1837.49,0.00014027,2]
[353894847,1740117043158,-529.29,0.00014027,2]
[353894849,1740117043167,-500.0,0.00014027,2]
[353894851,1740117043180,-907.48,0.00014027,2]
[353894853,1740117043190,-604.66,0.00014027,2]
[353894856,1740117043199,-500.0,0.00014027,2]
[353894858,1740117043208,-500.0,0.00014027,2]
[353894860,1740117043218,-1373.67,0.00014027,2]
[353894862,1740117043227,-500.0,0.00014027,2]
[353894863,1740117043236,-500.0,0.00014027,2]
[353894864,1740117043247,-962.46,0.00014027,2]
[353894866,1740117043255,-507.4301472,0.00014027,2]
[353894868,1740117043264,-500.0,0.00014027,2]
[353894870,1740117043273,-822.03,0.00014027,2]
[353894872,1740117043282,-500.0,0.00014027,2]
[353894874,1740117043291,-2871.79,0.00014027,2]
[353894876,1740117043300,-500.0,0.00014027,2]
[353894878,1740117043309,-915.56,0.00014027,2]
[353894880,1740117043318,-500.0,0.00014027,2]
[353894882,1740117043327,-500.0,0.00014027,2]
[353894884,1740117043336,-501.3968598,0.00014043,2]
[353894886,1740117043345,-500.99293683,0.00014043,2]
[353894888,1740117043354,-500.0,0.00014056,2]
[353894890,1740117043364,-500.0,0.00014093,2]
[353894892,1740117043373,-500.0,0.00014093,2]
[353894894,1740117043382,-500.0,0.000141,2]
[353894896,1740117043391,-507.07882964,0.00014109,2]
[353894898,1740117043401,-500.0,0.00014109,2]
[353894900,1740117043410,-500.0,0.00014109,2]
[353894902,1740117043419,-500.0,0.00014109,2]
[353894904,1740117043428,-500.0,0.00014109,2]
[353894906,1740117043438,-500.0,0.00014109,2]
[353894908,1740117043447,-500.0,0.00014109,2]
[353894909,1740117043456,-500.0,0.00014109,2]
[353894911,1740117043466,-500.0,0.00014109,2]
[353894913,1740117043475,-500.0,0.00014109,2]
[353894915,1740117043485,-500.0,0.00014109,2]
[353894917,1740117043495,-500.0,0.00014109,2]
[353894919,1740117043504,-500.0,0.00014109,2]
[353894921,1740117043513,-564.43,0.00014109,2]
[353894923,1740117043522,-500.0,0.00014109,2]
[353894925,1740117043536,-500.0,0.00014109,2]
[353894927,1740117043546,-500.0,0.00014109,2]
[353894929,1740117043555,-533.17,0.00014109,2]
[353894930,1740117043565,-500.0,0.00014109,2]
[353894932,1740117043574,-500.0,0.00014109,2]
[353894934,1740117043583,-500.0,0.00014109,2]
[353894936,1740117043594,-500.0,0.00014109,2]
[353894938,1740117043604,-422.71901577,0.00014109,2]
[353894939,1740117043613,-500.0,0.00014109,2]
[353894941,1740117043624,-500.0,0.00014109,2]
[353894943,1740117043636,-1090.82,0.00014109,2]
[353894944,1740117043645,-7612.34,0.00014109,2]
[353894945,1740117043655,-3679.13,0.00014109,2]